[Event "35th European Club Cup 2019"]
[Site "Ulcinj"]
[Date "2019.11.15"]
[Round "6.32"]
[White "Basso, Pier Luigi"]
[Black "Riff, Jean-Noel"]
[Result "1-0"]
[ECO "D37"]
[WhiteElo "2563"]
[BlackElo "2514"]
[Annotator "ChessBase"]
[PlyCount "113"]
[EventDate "2019.11.10"]
[EventType "team-tourn"]
[EventCountry "MNE"]
[SourceTitle "playchess.com"]
[Source "ChessBase"]
[SourceQuality "1"]
[WhiteTeam "WorldTradingLab Club"]
[BlackTeam "Mulhouse"]
[TimeControl "40/5400+30:1800+30"]

1. d4 {[%emt 0:00:00]} Nf6 {[%emt 0:00:00]} 2. c4 {[%emt 0:00:00]} e6 {[%emt 0:00:00]} 3. Nf3 {[%emt 0:00:00]} d5 {[%emt 0:00:00]} 4. Nc3 {[%emt 0:00:00]} Be7 {[%emt 0:00:00]} 5. Bf4 {[%emt 0:00:05]} O-O {[%emt 0:00:00]} 6. a3 {[%emt 0:00:07]} b6 {[%emt 0:00:00]} 7. e3 {[%emt 0:00:21]} c5 {[%emt 0:00:00]} 8. dxc5 {[%emt 0:00:19]} bxc5 {[%emt 0:00:00]} 9. Be2 {[%emt 0:00:07]} Bb7 {[%emt 0:00:57]} 10. O-O {[%emt 0:00:16]} Nbd7 {[%emt 0:01:46]} 11. Rc1 {[%emt 0:00:36]} Rc8 {[%emt 0:01:13]} 12. Qb3 {[%emt 0:00:15]} Qb6 {[%emt 0:03:54]} 13. Qxb6 {[%emt 0:00:12]} Nxb6 {[%emt 0:00:45]} 14. Nb5 {[%emt 0:09:45]} Nxc4 {[%emt 0:16:03]} 15. Bxc4 {[%emt 0:00:47]} dxc4 {[%emt 0:00:05]} 16. Nxa7 {[%emt 0:03:57]} Ra8 {[%emt 0:01:29]} 17. Nb5 {[%emt 0:00:15]} Bxf3 {[%emt 0:02:47]} 18. gxf3 {[%emt 0:00:08]} Nd5 {[%emt 0:00:02]} 19. Rxc4 {[%emt 0:04:02]} Ra5 {[%emt 0:01:15]} 20. Nc3 {[%emt 0:14:02]} Nxc3 {[%emt 0:21:22]} 21. Rxc3 {[%emt 0:00:33]} Bf6 {[%emt 0:00:03]} 22. Rc2 {[%emt 0:05:43]} e5 {[%emt 0:00:25]} 23. Bg3 {[%emt 0:00:08]} h5 {[%emt 0:00:07]} 24. h3 {[%emt 0:00:53]} Rb8 {[%emt 0:00:37]} 25. Rd1 {[%emt 0:05:20]} c4 {[%emt 0:06:43]} 26. Rd7 {[%emt 0:02:10]} Rb3 {[%emt 0:14:11]} 27. Rc7 {[%emt 0:06:05]} e4 {[%emt 0:03:03]} 28. fxe4 {[%emt 0:07:29]} Bxb2 {[%emt 0:02:03]} 29. R7xc4 {[%emt 0:01:44]} Raxa3 {[%emt 0:03:52]} 30. Rc8+ {[%emt 0:00:20]} Kh7 {[%emt 0:00:01]} 31. R2c5 {[%emt 0:03:54]} Kg6 {[%emt 0:02:34]} 32. Bf4 {[%emt 0:07:55]} f6 {[%emt 0:00:20]} 33. R8c6 {[%emt 0:01:18]} Rc3 {[%emt 0:00:44]} 34. Rg5+ {[%emt 0:04:06]} Kf7 {[%emt 0:00:13]} 35. Rxc3 {[%emt 0:00:25]} Bxc3 {[%emt 0:01:16]} 36. Rxh5 {[%emt 0:02:13]} g5 {[%emt 0:01:04]} 37. Bg3 {[%emt 0:00:13]} Ra4 {[%emt 0:02:28]} 38. Rh7+ {[%emt 0:02:02]} Ke6 {[%emt 0:00:03]} 39. Rc7 {[%emt 0:00:53]} Ba1 {[%emt 0:00:58]} 40. f3 {[%emt 0:00:00]} Ra3 {[%emt 0:00:00]} 41. Rc6+ {[%emt 0:02:01]} Kf7 {[%emt 0:00:16]} 42. Kf2 {[%emt 0:00:46]} Ra2+ {[%emt 0:00:05]} 43. Kf1 {[%emt 0:00:11]} Ra3 {[%emt 0:00:03]} 44. Ke2 {[%emt 0:01:30]} Ra2+ {[%emt 0:00:29]} 45. Kf1 {[%emt 0:03:57]} Ra3 {[%emt 0:00:07]} 46. Bf2 {[%emt 0:00:04]} Be5 {[%emt 0:00:05]} 47. Rc2 {[%emt 0:00:06]} Kg6 {[%emt 0:01:00]} 48. Kg2 {[%emt 0:00:09]} Rd3 {[%emt 0:00:15]} 49. Re2 {[%emt 0:00:06]} Kh5 {[%emt 0:00:05]} 50. Bg3 {[%emt 0:01:50]} Bc3 {[%emt 0:00:24]} 51. f4 {[%emt 0:02:09]} Kg6 {[%emt 0:01:04]} 52. f5+ {[%emt 0:01:47]} Kf7 {[%emt 0:01:03]} 53. Kf3 {[%emt 0:00:11]} Bd4 {[%emt 0:00:29]} 54. e5 {[%emt 0:01:33]} Bxe5 {[%emt 0:00:52]} 55. Bxe5 {[%emt 0:00:04]} fxe5 {[%emt 0:00:05]} 56. Ke4 {[%emt 0:00:03]} Ra3 {[%emt 0:00:02]} 57. Rd2 {[%emt 0:00:35]} 1-0

[Event "35th European Club Cup 2019"]
[Site "Ulcinj"]
[Date "2019.11.15"]
[Round "6.33"]
[White "Sokolov, Andrei"]
[Black "Lopez Martinez, Josep Manuel"]
[Result "1/2-1/2"]
[ECO "B90"]
[WhiteElo "2497"]
[BlackElo "2567"]
[Annotator "ChessBase"]
[PlyCount "88"]
[EventDate "2019.11.10"]
[EventType "team-tourn"]
[EventCountry "MNE"]
[SourceTitle "playchess.com"]
[Source "ChessBase"]
[SourceQuality "1"]
[WhiteTeam "Mulhouse"]
[BlackTeam "WorldTradingLab Club"]
[TimeControl "40/5400+30:1800+30"]

1. e4 {[%emt 0:00:00]} c5 {[%emt 0:00:28]} 2. Nf3 {[%emt 0:00:00]} d6 {[%emt 0:00:08]} 3. d4 {[%emt 0:00:00]} cxd4 {[%emt 0:00:19]} 4. Nxd4 {[%emt 0:00:03]} Nf6 {[%emt 0:00:10]} 5. Nc3 {[%emt 0:00:05]} a6 {[%emt 0:00:13]} 6. Be3 {[%emt 0:08:22]} e5 {[%emt 0:01:23]} 7. Nf3 {[%emt 0:00:36]} Be7 {[%emt 0:04:55]} 8. Bc4 {[%emt 0:03:05]} O-O {[%emt 0:01:42]} 9. O-O {[%emt 0:00:57]} Nc6 {[%emt 0:01:22]} 10. Bg5 {[%emt 0:10:32]} Nh5 {[%emt 0:14:56]} 11. Bxe7 {[%emt 0:02:22]} Qxe7 {[%emt 0:00:19]} 12. Nd5 {[%emt 0:03:32]} Qd8 {[%emt 0:00:17]} 13. Re1 {[%emt 0:11:19]} Be6 {[%emt 0:07:05]} 14. c3 {[%emt 0:02:08]} Nf6 {[%emt 0:11:55]} 15. Nxf6+ {[%emt 0:06:57]} Qxf6 {[%emt 0:00:35]} 16. Bxe6 {[%emt 0:00:56]} Qxe6 {[%emt 0:00:31]} 17. Qb3 {[%emt 0:10:07]} Qxb3 {[%emt 0:00:36]} 18. axb3 {[%emt 0:00:02]} Rfd8 {[%emt 0:01:22]} 19. Red1 {[%emt 0:02:53]} f6 {[%emt 0:00:23]} 20. Ne1 {[%emt 0:02:37]} Kf7 {[%emt 0:03:20]} 21. Nc2 {[%emt 0:00:38]} Ke6 {[%emt 0:00:11]} 22. Ne3 {[%emt 0:01:46]} Ne7 {[%emt 0:00:25]} 23. Rd2 {[%emt 0:04:32]} Rac8 {[%emt 0:02:23]} 24. Rad1 {[%emt 0:01:11]} g6 {[%emt 0:00:38]} 25. g4 {[%emt 0:08:09]} Rd7 {[%emt 0:01:25]} 26. f3 {[%emt 0:06:22]} Rcd8 {[%emt 0:00:58]} 27. Nd5 {[%emt 0:00:33]} Nxd5 {[%emt 0:00:39]} 28. Rxd5 {[%emt 0:00:11]} f5 {[%emt 0:03:34]} 29. gxf5+ {[%emt 0:03:54]} gxf5 {[%emt 0:00:19]} 30. exf5+ {[%emt 0:00:09]} Kxf5 {[%emt 0:00:28]} 31. Kf2 {[%emt 0:00:35]} Ke6 {[%emt 0:03:32]} 32. c4 {[%emt 0:00:33]} Rc8 {[%emt 0:01:27]} 33. Ke3 {[%emt 0:01:03]} b5 {[%emt 0:04:02]} 34. cxb5 {[%emt 0:00:54]} axb5 {[%emt 0:00:08]} 35. f4 {[%emt 0:02:24]} exf4+ {[%emt 0:01:12]} 36. Kxf4 {[%emt 0:00:06]} b4 {[%emt 0:06:23]} 37. Rh5 {[%emt 0:02:56]} Rf7+ {[%emt 0:00:59]} 38. Ke3 {[%emt 0:01:17]} Re8 {[%emt 0:13:30]} 39. Rd4 {[%emt 0:01:03]} Kd7+ {[%emt 0:00:50]} 40. Kd3 {[%emt 0:00:00]} Rf3+ {[%emt 0:00:00]} 41. Kc4 {[%emt 0:07:55]} Rc8+ {[%emt 0:02:53]} 42. Kb5 {[%emt 0:00:22]} Rb8+ {[%emt 0:01:06]} 43. Kc4 {[%emt 0:01:27]} Rc8+ {[%emt 0:03:09]} 44. Kb5 {[%emt 0:00:06]} Rb8+ 1/2-1/2

[Event "35th European Club Cup 2019"]
[Site "Ulcinj"]
[Date "2019.11.15"]
[Round "6.34"]
[White "Stella, Andrea"]
[Black "Papadiamandis, Elliot"]
[Result "1-0"]
[ECO "D73"]
[WhiteElo "2475"]
[BlackElo "2220"]
[Annotator "ChessBase"]
[PlyCount "120"]
[EventDate "2019.11.10"]
[EventType "team-tourn"]
[EventCountry "MNE"]
[SourceTitle "playchess.com"]
[Source "ChessBase"]
[SourceQuality "1"]
[WhiteTeam "WorldTradingLab Club"]
[BlackTeam "Mulhouse"]
[TimeControl "40/5400+30:1800+30"]

1. d4 {[%emt 0:00:00]} Nf6 {[%emt 0:00:00]} 2. c4 {[%emt 0:00:00]} g6 {[%emt 0:00:13]} 3. Nf3 {[%emt 0:00:00]} Bg7 {[%emt 0:00:33]} 4. g3 {[%emt 0:00:05]} d5 {[%emt 0:00:59]} 5. Bg2 {[%emt 0:00:43]} dxc4 {[%emt 0:00:36]} 6. Na3 {[%emt 0:00:36]} c3 {[%emt 0:00:57]} 7. bxc3 {[%emt 0:00:08]} O-O {[%emt 0:00:47]} 8. O-O {[%emt 0:00:07]} c5 {[%emt 0:00:15]} 9. Re1 {[%emt 0:00:12]} Nc6 {[%emt 0:02:07]} 10. Bb2 {[%emt 0:00:09]} Bf5 {[%emt 0:02:39]} 11. d5 {[%emt 0:05:22]} Na5 {[%emt 0:07:23]} 12. Nd2 {[%emt 0:25:16]} b5 {[%emt 0:16:25]} 13. c4 {[%emt 0:09:34]} b4 {[%emt 0:18:10]} 14. Nc2 {[%emt 0:03:10]} Ne8 {[%emt 0:10:25]} 15. Bxg7 {[%emt 0:01:26]} Nxg7 {[%emt 0:00:29]} 16. e4 {[%emt 0:01:15]} Bd7 {[%emt 0:02:40]} 17. Ne3 {[%emt 0:02:46]} e5 {[%emt 0:02:44]} 18. dxe6 {[%emt 0:03:03]} fxe6 {[%emt 0:02:21]} 19. Nb3 {[%emt 0:10:41]} Nxb3 {[%emt 0:01:56]} 20. axb3 {[%emt 0:00:04]} Qc7 {[%emt 0:03:00]} 21. Ra6 {[%emt 0:08:14]} Bc6 {[%emt 0:00:40]} 22. Qa1 {[%emt 0:00:54]} Bb7 {[%emt 0:03:10]} 23. Ra5 {[%emt 0:02:56]} h5 {[%emt 0:03:46]} 24. Re2 {[%emt 0:07:41]} a6 {[%emt 0:01:34]} 25. Rea2 {[%emt 0:02:37]} Rf7 {[%emt 0:02:12]} 26. Rd2 {[%emt 0:02:57]} Rd8 {[%emt 0:01:47]} 27. Rxc5 {[%emt 0:07:32]} Qb6 {[%emt 0:00:01]} 28. Rxd8+ {[%emt 0:02:44]} Qxd8 {[%emt 0:00:01]} 29. Ra5 {[%emt 0:00:33]} Qd3 {[%emt 0:06:53]} 30. Qd1 {[%emt 0:01:53]} Qxd1+ {[%emt 0:03:13]} 31. Nxd1 {[%emt 0:00:02]} Rd7 {[%emt 0:00:09]} 32. Ne3 {[%emt 0:00:03]} Rd3 {[%emt 0:00:53]} 33. e5 {[%emt 0:00:06]} Bxg2 {[%emt 0:01:24]} 34. Kxg2 {[%emt 0:00:01]} Rxb3 {[%emt 0:01:22]} 35. Rxa6 {[%emt 0:00:02]} Rc3 {[%emt 0:00:40]} 36. Rb6 {[%emt 0:01:46]} b3 {[%emt 0:00:15]} 37. h3 {[%emt 0:01:10]} Kf7 {[%emt 0:00:39]} 38. Rb7+ {[%emt 0:01:22]} Kf8 {[%emt 0:00:03]} 39. Rb8+ {[%emt 0:00:20]} Kf7 {[%emt 0:00:02]} 40. Rb7+ {[%emt 0:00:00]} Kf8 {[%emt 0:00:00]} 41. g4 {[%emt 0:01:13]} hxg4 {[%emt 0:03:51]} 42. hxg4 {[%emt 0:00:38]} Kg8 {[%emt 0:05:35]} 43. Kf3 {[%emt 0:01:00]} Kf8 {[%emt 0:01:24]} 44. Ke2 {[%emt 0:00:15]} Rc1 {[%emt 0:02:18]} 45. Rxb3 {[%emt 0:00:12]} Ne8 {[%emt 0:00:07]} 46. Rb7 {[%emt 0:00:23]} Ra1 {[%emt 0:00:06]} 47. Kf3 {[%emt 0:03:01]} Ra2 {[%emt 0:00:16]} 48. Kg3 {[%emt 0:01:08]} g5 {[%emt 0:00:30]} 49. Kf3 {[%emt 0:01:38]} Rd2 {[%emt 0:04:13]} 50. Ra7 {[%emt 0:01:20]} Rb2 {[%emt 0:00:15]} 51. Rd7 {[%emt 0:01:20]} Ra2 {[%emt 0:00:22]} 52. Kg3 {[%emt 0:00:19]} Ra3 {[%emt 0:00:26]} 53. Kf3 {[%emt 0:01:31]} Ra2 {[%emt 0:00:04]} 54. Nf1 {[%emt 0:01:22]} Ra1 {[%emt 0:03:54]} 55. Nd2 {[%emt 0:01:05]} Rc1 {[%emt 0:00:03]} 56. Ra7 {[%emt 0:03:22]} Rc2 {[%emt 0:01:44]} 57. Ke3 {[%emt 0:00:50]} Rc3+ {[%emt 0:00:15]} 58. Kd4 {[%emt 0:01:06]} Rc2 {[%emt 0:00:04]} 59. Ne4 {[%emt 0:01:41]} Ng7 {[%emt 0:01:03]} 60. f3 {[%emt 0:00:19]} Rc1 {[%emt 0:00:19]} 1-0

[Event "35th European Club Cup 2019"]
[Site "Ulcinj"]
[Date "2019.11.15"]
[Round "6.35"]
[White "Netzer, Jacques"]
[Black "Barp, Alberto"]
[Result "0-1"]
[ECO "C50"]
[WhiteElo "2284"]
[BlackElo "2382"]
[Annotator "NA"]
[PlyCount "152"]
[EventDate "2019.11.10"]
[EventType "team-tourn"]
[EventCountry "MNE"]
[SourceTitle "playchess.com"]
[Source "ChessBase"]
[SourceQuality "1"]
[WhiteTeam "Mulhouse"]
[BlackTeam "WorldTradingLab Club"]
[TimeControl "40/5400+30:1800+30"]

1. e4 {[%emt 0:00:00]} e5 {[%emt 0:00:00]} 2. Nf3 {[%emt 0:00:00]} Nc6 {[%emt 0:00:00]} 3. Bc4 {[%emt 0:00:00]} Bc5 {[%emt 0:00:00]} 4. O-O {[%emt 0:00:00]} Nf6 {[%emt 0:00:00]} 5. d3 {[%emt 0:00:02]} a6 {[%emt 0:00:38]} 6. a4 {[%emt 0:00:35]} Ba7 {[%emt 0:02:59]} 7. c3 {[%emt 0:04:37]} d6 {[%emt 0:01:40]} 8. Re1 {[%emt 0:04:40]} h6 {[%emt 0:03:07]} 9. h3 {[%emt 0:05:14]} O-O {[%emt 0:01:10]} 10. Na3 {[%emt 0:01:27]} Ne7 {[%emt 0:04:51]} 11. Nc2 {[%emt 0:04:07]} Ng6 {[%emt 0:04:56]} 12. Be3 {[%emt 0:07:15]} Bxe3 {[%emt 0:11:11]} 13. Nxe3 {[%emt 0:00:05]} c6 {[%emt 0:00:23]} 14. Qc2 {[%emt 0:30:21]} d5 {[%emt 0:09:50]} 15. Ba2 {[%emt 0:00:04]} Be6 {[%emt 0:00:58]} 16. d4 {[%emt 0:11:12]} Nxe4 {[%emt 0:13:35]} 17. Nxe5 {[%emt 0:08:42]} Qg5 {[%emt 0:09:33]} 18. Nxg6 {[%emt 0:04:29]} fxg6 {[%emt 0:05:58]} 19. f3 {[%emt 0:02:07]} Rxf3 {[%emt 0:01:56]} 20. Ng4 {[%emt 0:00:07]} Bxg4 {[%emt 0:10:32]} 21. Qxe4 {[%emt 0:00:10]} Rf4 {[%emt 0:00:18]} 22. Qe7 {[%emt 0:00:16]} Bf5 {[%emt 0:02:51]} 23. Qxg5 {[%emt 0:01:30]} hxg5 {[%emt 0:00:06]} 24. Re7 {[%emt 0:00:08]} Re4 {[%emt 0:08:08]} 25. Rxb7 {[%emt 0:01:39]} Re2 {[%emt 0:00:04]} 26. Rf1 {[%emt 0:00:20]} Rf8 {[%emt 0:00:15]} 27. Bb3 {[%emt 0:12:37]} Be4 {[%emt 0:00:37]} 28. Rxf8+ {[%emt 0:00:04]} Kxf8 {[%emt 0:00:03]} 29. a5 {[%emt 0:00:38]} Rxg2+ {[%emt 0:00:44]} 30. Kf1 {[%emt 0:00:01]} Rxb2 {[%emt 0:01:12]} 31. Rb6 {[%emt 0:00:07]} Bd3+ {[%emt 0:01:48]} 32. Ke1 {[%emt 0:00:20]} Bb5 {[%emt 0:00:38]} 33. c4 {[%emt 0:01:22]} Rxb3 {[%emt 0:01:55]} 34. cxb5 {[%emt 0:00:06]} Rxb5 {[%emt 0:02:35]} 35. Rxa6 {[%emt 0:01:08]} c5 {[%emt 0:01:39]} 36. dxc5 {[%emt 0:01:28]} Rxc5 {[%emt 0:00:02]} 37. Rxg6 {[%emt 0:00:37]} Rxa5 {[%emt 0:00:05]} 38. Rxg5 {[%emt 0:00:04]} Kf7 {[%emt 0:00:13]} 39. h4 {[%emt 0:00:57]} Kf6 {[%emt 0:00:40]} 40. Ke2 {[%emt 0:00:00]} Rb5 {[%emt 0:00:00]} 41. Kd3 {[%emt 0:15:55]} Rb3+ {[%emt 0:10:26]} 42. Kd4 {[%emt 0:08:05]} Rb4+ {[%emt 0:02:53]} 43. Ke3 {[%emt 0:00:16]} Re4+ {[%emt 0:05:08]} 44. Kf3 {[%emt 0:02:13]} Re5 {[%emt 0:01:05]} 45. Rg4 {[%emt 0:00:16]} g6 {[%emt 0:02:32]} 46. Ra4 {[%emt 0:01:22]} Re1 {[%emt 0:00:43]} 47. Ra6+ {[%emt 0:02:20]} Kf5 {[%emt 0:00:24]} 48. Rd6 {[%emt 0:00:30]} Re5 {[%emt 0:04:02]} 49. Kg3 {[%emt 0:00:38]} Re3+ {[%emt 0:02:25]} 50. Kf2 {[%emt 0:00:12]} Rd3 {[%emt 0:00:04]} 51. Ke2 {[%emt 0:00:45]} Rd4 {[%emt 0:00:03]} 52. Ke3 {[%emt 0:00:16]} Re4+ {[%emt 0:00:16]} 53. Kf3 {[%emt 0:00:40]} Rf4+ {[%emt 0:00:08]} 54. Kg3 {[%emt 0:02:18]} Rg4+ {[%emt 0:03:02]} 55. Kf3 {[%emt 0:02:30]} d4 {[%emt 0:02:24]} 56. h5 {[%emt 0:00:35]} gxh5 {[%emt 0:00:10]} 57. Rd5+ {[%emt 0:00:18]} Kg6 {[%emt 0:00:13]} 58. Ra5 {[%emt 0:00:37]} Rh4 {[%emt 0:02:58]} 59. Rd5 {[%emt 0:00:16]} Kf6 {[%emt 0:00:44]} 60. Kg3 {[%emt 0:00:39]} Ke6 {[%emt 0:00:13]} 61. Rd8 {[%emt 0:00:13]} Rg4+ {[%emt 0:00:23]} 62. Kf3 {[%emt 0:00:05]} Ke5 {[%emt 0:00:23]} 63. Re8+ {[%emt 0:01:03]} Kd5 {[%emt 0:00:26]} 64. Ra8 {[%emt 0:00:21]} Kc4 {[%emt 0:01:03]} 65. Ra4+ {[%emt 0:00:53]} Kc3 {[%emt 0:00:33]} 66. Ra3+ {[%emt 0:00:13]} Kc2 {[%emt 0:00:21]} 67. Ra2+ {[%emt 0:00:04]} Kb3 {[%emt 0:00:14]} 68. Ra5 {[%emt 0:00:09]} Rh4 {[%emt 0:00:38]} 69. Kg3 {[%emt 0:01:38]} Re4 {[%emt 0:01:49]} 70. Rxh5 {[%emt 0:00:29]} d3 {[%emt 0:00:04]} 71. Kf3 {[%emt 0:00:25]} Re1 {[%emt 0:00:09]} 72. Rd5 {[%emt 0:00:34]} Kc3 {[%emt 0:00:10]} 73. Rc5+ {[%emt 0:00:33]} Kd4 {[%emt 0:00:12]} 74. Rc8 {[%emt 0:00:10]} d2 {[%emt 0:00:07]} 75. Rd8+ {[%emt 0:00:25]} Kc3 {[%emt 0:00:04]} 76. Rc8+ {[%emt 0:00:08]} Kb4 {[%emt 0:00:13]} 0-1

[Event "35th European Club Cup 2019"]
[Site "Ulcinj"]
[Date "2019.11.15"]
[Round "6.36"]
[White "Seresin, Francesco"]
[Black "Richard, Emma"]
[Result "1/2-1/2"]
[ECO "E48"]
[WhiteElo "2367"]
[BlackElo "2157"]
[Annotator "NA"]
[PlyCount "131"]
[EventDate "2019.11.10"]
[EventType "team-tourn"]
[EventCountry "MNE"]
[SourceTitle "playchess.com"]
[Source "ChessBase"]
[SourceQuality "1"]
[WhiteTeam "WorldTradingLab Club"]
[BlackTeam "Mulhouse"]
[TimeControl "40/5400+30:1800+30"]

1. d4 {[%emt 0:00:29]} Nf6 {[%emt 0:00:00]} 2. c4 {[%emt 0:00:30]} e6 {[%emt 0:00:00]} 3. Nc3 {[%emt 0:00:32]} Bb4 {[%emt 0:00:00]} 4. e3 {[%emt 0:00:58]} O-O {[%emt 0:00:10]} 5. Bd3 {[%emt 0:00:26]} d5 {[%emt 0:01:50]} 6. cxd5 {[%emt 0:00:45]} exd5 {[%emt 0:06:58]} 7. Nge2 {[%emt 0:00:58]} b6 {[%emt 0:04:11]} 8. O-O {[%emt 0:03:06]} Ba6 {[%emt 0:05:19]} 9. f3 {[%emt 0:06:27]} Bxd3 {[%emt 0:03:44]} 10. Qxd3 {[%emt 0:00:14]} c5 {[%emt 0:00:32]} 11. dxc5 {[%emt 0:11:13]} Bxc5 {[%emt 0:05:28]} 12. Nd4 {[%emt 0:08:54]} Nbd7 {[%emt 0:25:34]} 13. Nce2 {[%emt 0:12:34]} Ne5 {[%emt 0:07:20]} 14. Qf5 {[%emt 0:01:45]} Re8 {[%emt 0:02:00]} 15. b3 {[%emt 0:01:25]} g6 {[%emt 0:04:43]} 16. Qg5 {[%emt 0:02:04]} h6 {[%emt 0:11:34]} 17. Qh4 {[%emt 0:08:32]} Nd3 {[%emt 0:01:45]} 18. Bd2 {[%emt 0:02:23]} Nh5 {[%emt 0:01:10]} 19. Qxd8 {[%emt 0:04:05]} Raxd8 {[%emt 0:00:04]} 20. g3 {[%emt 0:05:31]} f5 {[%emt 0:05:22]} 21. Kg2 {[%emt 0:05:51]} Rc8 {[%emt 0:05:38]} 22. Rad1 {[%emt 0:02:36]} Bb4 {[%emt 0:00:37]} 23. Bxb4 {[%emt 0:13:12]} Nxb4 {[%emt 0:00:07]} 24. Kf2 {[%emt 0:02:59]} Nxa2 {[%emt 0:01:35]} 25. Rd2 {[%emt 0:02:47]} Nc3 {[%emt 0:01:29]} 26. Rc1 {[%emt 0:01:12]} Nxe2 {[%emt 0:00:11]} 27. Rxc8 {[%emt 0:00:05]} Rxc8 {[%emt 0:00:02]} 28. Nxe2 {[%emt 0:00:09]} Rc5 {[%emt 0:01:28]} 29. Rd4 {[%emt 0:01:49]} Nf6 {[%emt 0:01:18]} 30. Ke1 {[%emt 0:00:46]} Kf7 {[%emt 0:00:42]} 31. Kd2 {[%emt 0:00:08]} g5 {[%emt 0:00:28]} 32. Nc3 {[%emt 0:00:42]} Ke6 {[%emt 0:00:55]} 33. h3 {[%emt 0:00:38]} h5 {[%emt 0:01:29]} 34. Rb4 {[%emt 0:00:27]} g4 {[%emt 0:00:33]} 35. hxg4 {[%emt 0:00:14]} hxg4 {[%emt 0:00:15]} 36. fxg4 {[%emt 0:00:39]} Nxg4 37. Nb5 {[%emt 0:00:31]} Nf6 {[%emt 0:01:53]} 38. Nxa7 {[%emt 0:00:35]} Ne4+ {[%emt 0:00:05]} 39. Kd3 {[%emt 0:00:39]} Ke5 {[%emt 0:02:08]} 40. Rxb6 {[%emt 0:00:00]} Rc3+ {[%emt 0:00:00]} 41. Ke2 {[%emt 0:02:47]} Nxg3+ {[%emt 0:02:35]} 42. Kf3 {[%emt 0:02:45]} Nf1 {[%emt 0:19:34]} 43. Nc6+ {[%emt 0:02:56]} Rxc6 {[%emt 0:03:48]} 44. Rxc6 {[%emt 0:01:06]} Nd2+ {[%emt 0:00:03]} 45. Ke2 {[%emt 0:01:35]} Nxb3 {[%emt 0:00:03]} 46. Kd3 {[%emt 0:00:40]} Na5 {[%emt 0:01:48]} 47. Rc8 {[%emt 0:00:44]} Kd6 {[%emt 0:00:49]} 48. Rd8+ {[%emt 0:01:49]} Ke6 {[%emt 0:00:44]} 49. Rh8 {[%emt 0:00:23]} Ke5 {[%emt 0:02:24]} 50. Re8+ {[%emt 0:04:04]} Kd6 {[%emt 0:00:06]} 51. Kd4 {[%emt 0:03:00]} Nc6+ {[%emt 0:00:12]} 52. Kc3 {[%emt 0:00:12]} Kd7 {[%emt 0:01:07]} 53. Rf8 {[%emt 0:02:36]} Ke6 {[%emt 0:00:04]} 54. Rh8 {[%emt 0:01:27]} Ke5 {[%emt 0:00:27]} 55. Rh4 {[%emt 0:00:58]} Na5 {[%emt 0:01:02]} 56. Kd3 {[%emt 0:01:17]} Nc6 {[%emt 0:00:56]} 57. Ra4 {[%emt 0:00:07]} Nd8 {[%emt 0:00:30]} 58. Ra8 {[%emt 0:03:29]} Ne6 {[%emt 0:00:24]} 59. Rh8 {[%emt 0:00:07]} Kd6 {[%emt 0:00:18]} 60. Ke2 {[%emt 0:00:29]} Ke5 {[%emt 0:00:20]} 61. Ra8 {[%emt 0:00:41]} Kd6 {[%emt 0:00:31]} 62. Ra1 {[%emt 0:01:02]} Ke5 {[%emt 0:00:07]} 63. Rf1 {[%emt 0:00:10]} Kf6 {[%emt 0:00:33]} 64. Ra1 {[%emt 0:01:37]} Ke5 {[%emt 0:00:03]} 65. Ra6 {[%emt 0:00:18]} Kf6 {[%emt 0:00:50]} 66. Ra1 {[%emt 0:01:03]} 1/2-1/2

[Event "35th European Club Cup 2019"]
[Site "Ulcinj"]
[Date "2019.11.16"]
[Round "7.1"]
[White "Pruijssers, Roeland"]
[Black "Laurusas, Tomas"]
[Result "1/2-1/2"]
[ECO "C42"]
[WhiteElo "2557"]
[BlackElo "2499"]
[Annotator "ChessBase"]
[PlyCount "51"]
[EventDate "2019.11.10"]
[EventType "team-tourn"]
[EventCountry "MNE"]
[SourceTitle "playchess.com"]
[Source "ChessBase"]
[SourceQuality "1"]
[WhiteTeam "Echiquier Mosan"]
[BlackTeam "MRU-ROSK Consulting"]
[TimeControl "40/5400+30:1800+30"]

1. e4 {[%emt 0:00:00]} e5 {[%emt 0:00:00]} 2. Nf3 {[%emt 0:00:00]} Nf6 {[%emt 0:00:00]} 3. Nxe5 {[%emt 0:00:00]} d6 {[%emt 0:00:05]} 4. Nf3 {[%emt 0:00:00]} Nxe4 {[%emt 0:00:07]} 5. d3 {[%emt 0:00:18]} Nf6 {[%emt 0:01:10]} 6. d4 {[%emt 0:00:08]} Be7 {[%emt 0:07:32]} 7. Bd3 {[%emt 0:02:23]} Bg4 {[%emt 0:01:12]} 8. O-O {[%emt 0:01:29]} O-O {[%emt 0:00:11]} 9. Re1 {[%emt 0:00:13]} Re8 {[%emt 0:03:58]} 10. Bg5 {[%emt 0:11:00]} Nbd7 {[%emt 0:02:45]} 11. Nc3 {[%emt 0:07:55]} c6 {[%emt 0:05:24]} 12. h3 {[%emt 0:05:16]} Bh5 {[%emt 0:01:04]} 13. Bf5 {[%emt 0:02:16]} Nb6 {[%emt 0:19:54]} 14. Qd3 {[%emt 0:03:58]} Bg6 {[%emt 0:05:41]} 15. Bxg6 {[%emt 0:14:21]} hxg6 {[%emt 0:00:09]} 16. Bxf6 {[%emt 0:01:56]} Bxf6 {[%emt 0:02:17]} 17. Rxe8+ {[%emt 0:00:58]} Qxe8 {[%emt 0:00:10]} 18. Ne4 {[%emt 0:00:30]} d5 {[%emt 0:13:16]} 19. Nxf6+ {[%emt 0:04:01]} gxf6 {[%emt 0:00:28]} 20. Re1 {[%emt 0:00:04]} Qf8 {[%emt 0:01:04]} 21. Qe3 {[%emt 0:00:51]} Nc4 {[%emt 0:00:13]} 22. Qf4 {[%emt 0:04:55]} Qd6 {[%emt 0:00:34]} 23. Qh6 {[%emt 0:02:03]} Qf8 {[%emt 0:00:39]} 24. Qf4 {[%emt 0:00:28]} Qd6 {[%emt 0:00:04]} 25. Qh6 {[%emt 0:00:12]} Qf8 {[%emt 0:00:06]} 26. Qf4 {[%emt 0:00:05]} 1/2-1/2